[Event "DVM U10 2024"]
[Site "Duesseldorf"]
[Date "2024.12.29"]
[Round "7"]
[White "Jiang, Alexander D"]
[Black "Fredrich, Tarje"]
[Result "1/2-1/2"]
[ECO "C54"]
[WhiteElo "1958"]
[BlackElo "1056"]
[Annotator "NA RC"]
[PlyCount "116"]
[EventDate "2024.12.23"]
[EventType "team-tourn"]
[EventRounds "7"]
[EventCountry "GER"]
[SourceTitle "playchess.com"]
[Source "ChessBase"]
[SourceQuality "1"]
[TimeControl "3300+5"]

1. e4 {[%emt 0:00:01]} e5 {[%emt 0:00:09]} 2. Nf3 {[%emt 0:00:05]} Nc6 {[%emt 0:00:12]} 3. Bc4 {[%emt 0:00:02]} Bc5 {[%emt 0:00:08]} 4. c3 {[%emt 0:00:06]} Nf6 {[%emt 0:00:44]} 5. d4 {[%emt 0:00:00]} exd4 {[%emt 0:00:05]} 6. cxd4 {[%emt 0:00:10]} Bb4+ {[%emt 0:00:30]} 7. Nc3 {[%emt 0:00:01]} Nxe4 {[%emt 0:00:07]} 8. O-O {[%emt 0:00:07]} O-O {[%emt 0:00:31]} 9. Nxe4 {[%emt 0:00:00]} d5 {[%emt 0:00:17]} 10. Qd3 {[%emt 0:04:17]} Bf5 {[%emt 0:01:04]} 11. Bg5 {[%emt 0:04:15]} Qd7 {[%emt 0:01:37]} 12. Ne5 {[%emt 0:02:36]} Nxe5 {[%emt 0:00:40]} 13. dxe5 {[%emt 0:00:25]} Bxe4 {[%emt 0:00:23]} 14. Qe3 {[%emt 0:01:21]} Qg4 {[%emt 0:00:25]} 15. f3 {[%emt 0:02:23]} Bxf3 {[%emt 0:00:33]} 16. Rxf3 {[%emt 0:00:18]} Qxc4 {[%emt 0:00:45]} 17. b3 {[%emt 0:02:43]} Qc6 {[%emt 0:00:51]} 18. Rc1 {[%emt 0:00:40]} Qb5 {[%emt 0:01:32]} 19. Bh6 {[%emt 0:02:21]} gxh6 {[%emt 0:00:39]} 20. Qxh6 {[%emt 0:00:42]} Qb6+ {[%emt 0:01:23]} 21. Qe3 {[%emt 0:00:16]} Qxe3+ {[%emt 0:00:17]} 22. Rxe3 {[%emt 0:00:02]} Bd2 {[%emt 0:00:28]} 23. Rg3+ {[%emt 0:00:47]} Kh8 {[%emt 0:00:48]} 24. Rxc7 {[%emt 0:00:19]} Bf4 {[%emt 0:00:12]} 25. Rd3 {[%emt 0:00:39]} Bxe5 {[%emt 0:00:10]} 26. Rxb7 {[%emt 0:00:05]} Rfd8 {[%emt 0:01:21]} 27. Rxf7 {[%emt 0:00:00]} d4 {[%emt 0:00:28]} 28. Rf5 {[%emt 0:00:49]} Bd6 {[%emt 0:02:27]} 29. Kh1 {[%emt 0:00:00]} Rac8 {[%emt 0:00:28]} 30. g3 {[%emt 0:01:30]} Rc1+ {[%emt 0:02:09]} 31. Kg2 {[%emt 0:00:00]} Rc2+ {[%emt 0:00:28]} 32. Kh3 {[%emt 0:00:07]} Rxa2 {[%emt 0:00:30]} 33. Rxd4 {[%emt 0:00:00]} Rxh2+ {[%emt 0:00:45]} 34. Kxh2 {[%emt 0:00:00]} Bxg3+ {[%emt 0:00:09]} 35. Kxg3 {[%emt 0:00:02]} Rxd4 {[%emt 0:00:12]} 36. Rb5 {[%emt 0:00:43]} Rd7 {[%emt 0:02:56]} 37. Kf4 {[%emt 0:00:00]} h6 {[%emt 0:01:04]} 38. Kf5 {[%emt 0:00:00]} Rg7 {[%emt 0:00:11]} 39. Kf6 {[%emt 0:00:00]} Kh7 {[%emt 0:00:56]} 40. Rb4 {[%emt 0:00:49]} a6 {[%emt 0:00:27]} 41. Rh4 {[%emt 0:02:30]} Rg6+ {[%emt 0:00:42]} 42. Kf5 {[%emt 0:00:49]} a5 {[%emt 0:00:23]} 43. Re4 {[%emt 0:01:59]} Rg3 {[%emt 0:00:59]} 44. Re7+ {[%emt 0:01:38]} Rg7 {[%emt 0:00:31]} 45. Re3 {[%emt 0:00:44]} Rf7+ {[%emt 0:00:34]} 46. Ke6 {[%emt 0:00:28]} Rf8 {[%emt 0:00:49]} 47. Rc3 {[%emt 0:00:31]} Ra8 {[%emt 0:00:21]} 48. Kf6 {[%emt 0:00:32]} a4 {[%emt 0:01:07]} 49. Rc7+ {[%emt 0:00:34]} Kg8 {[%emt 0:00:35]} 50. bxa4 {[%emt 0:00:43]} Rxa4 {[%emt 0:00:17]} 51. Rc8+ {[%emt 0:00:46]} Kh7 {[%emt 0:01:58]} 52. Rc7+ {[%emt 0:00:00]} Kg8 {[%emt 0:00:10]} 53. Rc8+ {[%emt 0:00:18]} Kh7 {[%emt 0:00:09]} 54. Rc7+ {[%emt 0:00:15]} Kh8 {[%emt 0:00:56]} 55. Rc8+ {[%emt 0:00:00]} Kh7 {[%emt 0:00:07]} 56. Rc7+ {[%emt 0:00:13]} Kg8 {[%emt 0:00:36]} 57. Rc8+ {[%emt 0:01:14]} Kh7 {[%emt 0:00:01]} 58. Rc7+ Kg8 1/2-1/2

[Event "DVM U10 2024"]
[Site "Duesseldorf"]
[Date "2024.12.29"]
[Round "7"]
[White "Hahn, David"]
[Black "Pukshansky, Mikhail B"]
[Result "1-0"]
[ECO "D00"]
[WhiteElo "1887"]
[BlackElo "2405"]
[Annotator "TA"]
[PlyCount "51"]
[EventDate "2024.12.23"]
[EventType "team-tourn"]
[EventRounds "7"]
[EventCountry "GER"]
[SourceTitle "playchess.com"]
[Source "ChessBase"]
[SourceQuality "1"]
[TimeControl "3300+5"]

{[%evp 9,50,-10,-3,-8,-13,-16,-7,-8,-8,-15,44,36,146,141,123,123,191,194,369,161,410,404,563,183,801,744,1594,1322,29995,29996,29996,29997,29997,852,846,845,704,300,29997,29996,29998,29999,29999]} 1. d4 {[%emt 0:00:01]} Nf6 {[%emt 0:00:07]} 2. Nc3 {[%emt 0:00:07]} d5 {[%emt 0:00:37]} 3. Bf4 {[%emt 0:00:09]} a6 {[%emt 0:00:43]} 4. e3 {[%emt 0:00:10]} Bf5 {[%emt 0:00:31]} 5. f3 {[%emt 0:00:05]} e6 {[%emt 0:00:32]} 6. g4 {[%emt 0:00:29]} Bg6 {[%emt 0:00:17]} 7. h4 {[%emt 0:00:07] And now h5 would win.} h6 {[%emt 0:00:18]} 8. Bd3 {[%emt 0:00:08]} (8. h5 $5 Bh7 $8 9. Bd3 $11) 8... Bxd3 {[%emt 0:00:39]} 9. Qxd3 {[%emt 0:00:05]} Bb4 {[%emt 0:00:44]} (9... c5 $11) 10. Nge2 {[%emt 0:00:09]} O-O {[%emt 0:00:33]} ({Black should try} 10... Nc6 $14) 11. O-O-O $16 {[%emt 0:00:11]} Nc6 {[%emt 0:00:30]} 12. a3 {[%emt 0:00:38]} Ba5 {[%emt 0:00:11]} (12... Bxc3 $16 13. Qxc3 (13. Nxc3 Qd7 $18) 13... Nd7) 13. g5 $18 {[%emt 0:00:18]} Kh8 $2 {[%emt 0:00:32]} (13... Nh5 14. gxh6 g6) 14. Rhg1 {[%emt 0:01:05]} (14. gxf6 $142 Qxf6 15. Na4) 14... Nd7 $2 {[%emt 0:02:51]} (14... Nh5 {might work better.} 15. gxh6 Rg8 16. hxg7+ Rxg7 17. Rxg7 Nxg7) 15. gxh6 {[%emt 0:00:41]} gxh6 {[%emt 0:00:00]} 16. Rg2 $2 $40 {[%emt 0:00:10][%mdl 128] White has strong attack.} (16. Bxh6 {Threatening mate with Bg7+.} Rg8 17. Nxd5) 16... e5 $2 {[%emt 0:00:00] [#]} (16... Qf6 17. e4 Bb6) 17. Rdg1 $1 {[%emt 0:00:29]} Nf6 {[%emt 0:00:00]} (17... exf4 18. Rg7) 18. dxe5 {[%emt 0:00:38][%cal Of4h6]} Nd7 {[%emt 0:00:00]} 19. Rg7 {[%emt 0:00:14][%csl Gg7][%cal Rd3h7]} f5 {[%emt 0:00:20]} 20. exf6 {[%emt 0:00:40]} Nxf6 {[%emt 0:00:27] [#]} 21. Ng3 {[%emt 0:03:02]} Kxg7 {[%emt 0:00:55] [#]} 22. Nh5+ $1 {[%emt 0:00:16]} Kh8 {[%emt 0:00:22]} 23. Qg6 {[%emt 0:01:42]} (23. Rg6 $142 Rf7 24. Nxd5 (24. Rxh6+ Nh7 $14)) 23... Rg8 $2 {[%emt 0:00:58]} (23... Qe7 $18) 24. Qxh6+ {[%emt 0:00:39]} Nh7 {[%emt 0:00:04]} 25. Rg7 {[%emt 0:00:39]} Rxg7 {[%emt 0:04:35]} 26. Qxg7# {[%emt 0:00:28]} 1-0

[Event "DVM U10 2024"]
[Site "Duesseldorf"]
[Date "2024.12.29"]
[Round "7"]
[White "White, William"]
[Black "Horn, Philipp"]
[Result "1-0"]
[ECO "C54"]
[WhiteElo "1750"]
[BlackElo "988"]
[Annotator "NA"]
[PlyCount "59"]
[EventDate "2024.12.23"]
[EventType "team-tourn"]
[EventRounds "7"]
[EventCountry "GER"]
[SourceTitle "playchess.com"]
[Source "ChessBase"]
[SourceQuality "1"]
[TimeControl "3300+5"]

1. e4 {[%emt 0:00:01]} e5 {[%emt 0:00:05]} 2. Nf3 {[%emt 0:00:04]} Nc6 {[%emt 0:00:05]} 3. Bc4 {[%emt 0:00:04]} Bc5 {[%emt 0:00:06]} 4. c3 {[%emt 0:00:04]} Nf6 {[%emt 0:00:05]} 5. d4 {[%emt 0:00:04]} exd4 {[%emt 0:00:11]} 6. e5 {[%emt 0:00:04]} Ng4 {[%emt 0:02:23]} 7. cxd4 {[%emt 0:02:10]} Bb4+ {[%emt 0:00:33]} 8. Nc3 {[%emt 0:00:27]} Bxc3+ {[%emt 0:01:09]} 9. bxc3 {[%emt 0:00:01]} d6 {[%emt 0:00:19]} 10. h3 {[%emt 0:03:13]} Nh6 {[%emt 0:02:22]} 11. Bxh6 {[%emt 0:05:40]} gxh6 {[%emt 0:00:10]} 12. O-O {[%emt 0:01:32]} Rg8 {[%emt 0:00:31]} 13. Kh1 {[%emt 0:03:12]} Be6 {[%emt 0:02:10]} 14. d5 {[%emt 0:03:09]} Na5 {[%emt 0:00:53]} 15. dxe6 {[%emt 0:00:07]} Nxc4 {[%emt 0:00:16]} 16. exf7+ {[%emt 0:00:04]} Kxf7 {[%emt 0:00:09]} 17. Qd5+ {[%emt 0:00:10]} Kf8 {[%emt 0:00:41]} 18. Qxc4 {[%emt 0:00:10]} Qe7 {[%emt 0:00:35]} 19. exd6 {[%emt 0:00:21]} Qxd6 {[%emt 0:00:21]} 20. Qb4 {[%emt 0:00:05]} c5 {[%emt 0:00:24]} 21. Qxb7 {[%emt 0:01:22]} Re8 {[%emt 0:01:03]} 22. Qxa7 {[%emt 0:01:45]} c4 {[%emt 0:01:05]} 23. Qd4 {[%emt 0:01:02]} Qg6 {[%emt 0:00:51]} 24. Qf4+ {[%emt 0:00:19]} Ke7 {[%emt 0:00:54]} 25. Rae1+ {[%emt 0:00:53]} Kd7 {[%emt 0:01:13]} 26. Rd1+ {[%emt 0:00:05]} Kc8 {[%emt 0:01:07]} 27. Qxc4+ {[%emt 0:00:10]} Kb7 {[%emt 0:00:40]} 28. Rb1+ {[%emt 0:00:12]} Ka7 {[%emt 0:00:06]} 29. Qc5+ {[%emt 0:00:17]} Ka6 {[%emt 0:00:34]} 30. Qa3# {[%emt 0:00:07]} 1-0

[Event "DVM U10 2024"]
[Site "Duesseldorf"]
[Date "2024.12.29"]
[Round "7"]
[White "Liu, Jonas"]
[Black "Riazi, Dominik"]
[Result "1-0"]
[ECO "C54"]
[WhiteElo "1690"]
[BlackElo "1602"]
[Annotator "NA"]
[PlyCount "117"]
[EventDate "2024.12.23"]
[EventType "team-tourn"]
[EventRounds "7"]
[EventCountry "GER"]
[SourceTitle "playchess.com"]
[Source "ChessBase"]
[SourceQuality "1"]
[TimeControl "3300+5"]

1. e4 {[%emt 0:00:04]} e5 {[%emt 0:00:01]} 2. Nf3 {[%emt 0:00:12]} Nc6 {[%emt 0:00:07]} 3. Bc4 {[%emt 0:00:17]} Bc5 {[%emt 0:00:18]} 4. c3 {[%emt 0:00:20]} Nf6 {[%emt 0:00:06]} 5. d3 {[%emt 0:00:15]} O-O {[%emt 0:00:41]} 6. O-O {[%emt 0:00:16]} d6 {[%emt 0:00:51]} 7. Re1 {[%emt 0:00:12]} Be6 {[%emt 0:01:07]} 8. Bxe6 {[%emt 0:00:20]} fxe6 {[%emt 0:00:10]} 9. Nbd2 {[%emt 0:00:08]} Qe7 {[%emt 0:03:48]} 10. Nf1 {[%emt 0:01:56]} Rae8 {[%emt 0:03:15]} 11. Be3 {[%emt 0:01:29]} Bb6 {[%emt 0:01:06]} 12. Bxb6 {[%emt 0:01:16]} axb6 {[%emt 0:00:11]} 13. d4 {[%emt 0:01:20]} Qf7 {[%emt 0:03:37]} 14. dxe5 {[%emt 0:01:28]} Nxe5 {[%emt 0:01:08]} 15. Nxe5 {[%emt 0:00:05]} dxe5 {[%emt 0:00:11]} 16. Ng3 {[%emt 0:01:42]} Qg6 {[%emt 0:03:23]} 17. Qb3 {[%emt 0:02:06]} Qf7 {[%emt 0:02:48]} 18. f3 {[%emt 0:02:22]} Rd8 {[%emt 0:01:08]} 19. Rad1 {[%emt 0:00:34]} Kh8 {[%emt 0:02:55]} 20. Rxd8 {[%emt 0:01:59]} Rxd8 {[%emt 0:00:33]} 21. Rd1 {[%emt 0:00:13]} Rxd1+ {[%emt 0:01:41]} 22. Qxd1 {[%emt 0:00:09]} Qe7 {[%emt 0:01:03]} 23. h3 {[%emt 0:00:56]} h6 {[%emt 0:01:09]} 24. Kh2 {[%emt 0:00:42]} Kh7 {[%emt 0:00:43]} 25. Qa4 {[%emt 0:00:11]} Qd6 {[%emt 0:01:39]} 26. Qc4 {[%emt 0:02:45]} Qd7 {[%emt 0:01:30]} 27. Ne2 {[%emt 0:02:01]} Nh5 {[%emt 0:01:40]} 28. a4 {[%emt 0:01:03]} Qd2 {[%emt 0:01:32]} 29. b3 {[%emt 0:05:48]} Qe1 {[%emt 0:04:16]} 30. Qxc7 {[%emt 0:03:48]} Qxe2 {[%emt 0:00:38]} 31. Qxe5 {[%emt 0:00:10]} Nf6 {[%emt 0:01:38]} 32. Qxe6 {[%emt 0:00:37]} Qd2 {[%emt 0:03:11]} 33. Qf5+ {[%emt 0:01:37]} Kg8 {[%emt 0:00:18]} 34. Qe6+ {[%emt 0:01:16]} Kh7 {[%emt 0:00:04]} 35. Qf5+ {[%emt 0:01:14]} Kg8 {[%emt 0:00:11]} 36. c4 {[%emt 0:00:06]} Qb4 {[%emt 0:02:58]} 37. Qb5 {[%emt 0:00:36]} Qc5 {[%emt 0:02:04]} 38. e5 {[%emt 0:00:28]} Qxb5 {[%emt 0:02:51]} 39. cxb5 {[%emt 0:00:10]} Nd7 {[%emt 0:00:19]} 40. Kg3 {[%emt 0:00:57]} Kf7 {[%emt 0:00:20]} 41. f4 {[%emt 0:00:27]} Ke6 {[%emt 0:00:10]} 42. b4 {[%emt 0:00:30]} Nxe5 {[%emt 0:00:38]} 43. fxe5 {[%emt 0:00:15]} Kxe5 {[%emt 0:00:02]} 44. a5 {[%emt 0:00:25]} Kd5 {[%emt 0:00:11]} 45. a6 {[%emt 0:00:12]} bxa6 {[%emt 0:00:06]} 46. bxa6 {[%emt 0:00:04]} Kc6 {[%emt 0:00:02]} 47. b5+ {[%emt 0:00:07]} Kc7 {[%emt 0:00:01]} 48. Kf4 {[%emt 0:00:05]} g6 {[%emt 0:00:03]} 49. Ke5 {[%emt 0:00:07]} g5 {[%emt 0:00:03]} 50. Kf6 {[%emt 0:00:04]} g4 {[%emt 0:00:02]} 51. hxg4 {[%emt 0:00:07]} h5 {[%emt 0:00:02]} 52. gxh5 {[%emt 0:00:07]} Kb8 {[%emt 0:00:06]} 53. h6 {[%emt 0:00:05]} Ka8 {[%emt 0:00:10]} 54. h7 {[%emt 0:00:11]} Ka7 {[%emt 0:00:06]} 55. Ke6 {[%emt 0:00:06]} Kb8 {[%emt 0:00:04]} 56. h8=Q+ {[%emt 0:00:08]} Ka7 {[%emt 0:00:02]} 57. Qg7+ {[%emt 0:00:11]} Kb8 {[%emt 0:00:01]} 58. Kd6 {[%emt 0:00:11]} Ka8 {[%emt 0:00:04]} 59. Qb7# {[%emt 0:00:09]} 1-0

[Event "DVM U10 2024"]
[Site "Duesseldorf"]
[Date "2024.12.29"]
[Round "7"]
[White "Schmidt, Jan"]
[Black "Sauer, Ben"]
[Result "1/2-1/2"]
[ECO "E32"]
[WhiteElo "1688"]
[BlackElo "1645"]
[Annotator "NA"]
[PlyCount "77"]
[EventDate "2024.12.23"]
[EventType "team-tourn"]
[EventRounds "7"]
[EventCountry "GER"]
[SourceTitle "playchess.com"]
[Source "ChessBase"]
[SourceQuality "1"]
[TimeControl "3300+5"]

1. d4 {[%emt 0:00:02]} Nf6 {[%emt 0:00:05]} 2. c4 {[%emt 0:00:07]} e6 {[%emt 0:00:07]} 3. Nc3 {[%emt 0:00:08]} Bb4 {[%emt 0:00:06]} 4. Qc2 {[%emt 0:00:22]} b6 {[%emt 0:00:19]} 5. Bg5 {[%emt 0:00:56]} Bb7 {[%emt 0:00:57]} 6. f3 {[%emt 0:21:54]} h6 {[%emt 0:01:56]} 7. Bh4 {[%emt 0:03:07]} d6 {[%emt 0:02:38]} 8. e3 {[%emt 0:00:25]} Nbd7 {[%emt 0:02:00]} 9. Bd3 {[%emt 0:02:39]} Bxc3+ {[%emt 0:01:56]} 10. bxc3 {[%emt 0:01:47]} O-O {[%emt 0:01:37]} 11. Ne2 {[%emt 0:00:48]} c5 {[%emt 0:02:02]} 12. O-O {[%emt 0:01:06]} Rc8 {[%emt 0:02:53]} 13. Rac1 {[%emt 0:02:24]} d5 {[%emt 0:02:12]} 14. Qb1 {[%emt 0:02:18]} Re8 {[%emt 0:04:23]} 15. e4 {[%emt 0:02:43]} dxc4 {[%emt 0:04:03]} 16. Bxc4 {[%emt 0:00:40]} cxd4 {[%emt 0:01:22]} 17. cxd4 {[%emt 0:02:52]} e5 {[%emt 0:03:22]} 18. Qb3 {[%emt 0:02:38]} Qe7 {[%emt 0:02:10]} 19. Bb5 {[%emt 0:03:28]} g5 {[%emt 0:07:04]} 20. Bf2 {[%emt 0:01:11]} Red8 {[%emt 0:00:50]} 21. dxe5 {[%emt 0:00:24]} Nxe5 {[%emt 0:02:06]} 22. Nd4 {[%emt 0:00:13]} Rxc1 {[%emt 0:04:35]} 23. Rxc1 {[%emt 0:00:02]} Bc8 {[%emt 0:01:18]} 24. Qb2 {[%emt 0:00:39]} a6 {[%emt 0:03:15]} 25. Bf1 {[%emt 0:00:13]} b5 {[%emt 0:00:26]} 26. Kh1 {[%emt 0:00:59]} Be6 {[%emt 0:01:02]} 27. Bg3 {[%emt 0:00:22]} Nfd7 {[%emt 0:00:06]} 28. Nxe6 {[%emt 0:00:16]} Qxe6 {[%emt 0:00:06]} 29. Qa3 {[%emt 0:00:43]} Nf6 {[%emt 0:01:14]} 30. Qc3 {[%emt 0:00:20]} Ned7 {[%emt 0:00:21]} 31. a3 {[%emt 0:00:12]} Nb6 {[%emt 0:00:26]} 32. h3 {[%emt 0:01:15]} Rc8 {[%emt 0:00:03]} 33. Qd2 {[%emt 0:00:06]} Nc4 {[%emt 0:00:20]} 34. Qa2 {[%emt 0:00:21]} Nd7 {[%emt 0:00:23]} 35. a4 {[%emt 0:00:04]} Ndb6 {[%emt 0:00:09]} 36. axb5 {[%emt 0:00:01]} axb5 {[%emt 0:00:00]} 37. Qa6 {[%emt 0:00:10]} Qd7 {[%emt 0:00:09]} 38. Qa2 {[%emt 0:00:07]} Qc6 {[%emt 0:00:06]} 39. Qf2 {[%emt 0:00:04]} 1/2-1/2

[Event "DVM U10 2024"]
[Site "Duesseldorf"]
[Date "2024.12.29"]
[Round "7"]
[White "Kukhtichev, Maksim"]
[Black "Huang, Flora Yueya"]
[Result "1/2-1/2"]
[ECO "B22"]
[WhiteElo "1639"]
[BlackElo "1481"]
[Annotator "NA"]
[PlyCount "47"]
[EventDate "2024.12.23"]
[EventType "team-tourn"]
[EventRounds "7"]
[EventCountry "GER"]
[SourceTitle "playchess.com"]
[Source "ChessBase"]
[SourceQuality "1"]
[TimeControl "3300+5"]

1. e4 {[%emt 0:00:01]} c5 {[%emt 0:00:04]} 2. c3 {[%emt 0:00:04]} e6 {[%emt 0:00:06]} 3. d4 {[%emt 0:00:06]} cxd4 {[%emt 0:00:10]} 4. cxd4 {[%emt 0:00:01]} Nf6 {[%emt 0:00:05]} 5. e5 {[%emt 0:00:05]} Nd5 {[%emt 0:00:07]} 6. Nf3 {[%emt 0:00:10]} Nc6 {[%emt 0:00:08]} 7. Bc4 {[%emt 0:00:07]} Nb6 {[%emt 0:00:06]} 8. Bb3 {[%emt 0:00:07]} d5 {[%emt 0:01:48]} 9. O-O {[%emt 0:00:08]} Be7 {[%emt 0:00:16]} 10. Nc3 {[%emt 0:00:41]} O-O {[%emt 0:01:56]} 11. Bc2 {[%emt 0:00:09]} g6 {[%emt 0:01:11]} 12. Qd2 {[%emt 0:00:28]} Re8 {[%emt 0:01:52]} 13. Qh6 {[%emt 0:00:21]} Bf8 {[%emt 0:00:06]} 14. Qh3 {[%emt 0:00:08]} a6 {[%emt 0:11:17]} 15. Ng5 {[%emt 0:01:35]} h6 {[%emt 0:00:59]} 16. Nf3 {[%emt 0:00:05]} Kh7 {[%emt 0:02:06]} 17. Bg5 {[%emt 0:02:34]} Qc7 {[%emt 0:00:27]} 18. Bf6 {[%emt 0:00:32]} Nd7 {[%emt 0:01:27]} 19. Bg5 {[%emt 0:17:33]} Bg7 {[%emt 0:01:26]} 20. Be3 {[%emt 0:08:28]} Nb6 {[%emt 0:05:14]} 21. Ng5+ {[%emt 0:01:36]} Kg8 {[%emt 0:00:05]} 22. Nf3 {[%emt 0:00:05]} Kh7 {[%emt 0:00:06]} 23. Ng5+ {[%emt 0:01:38]} Kg8 {[%emt 0:00:05]} 24. Nf3 {[%emt 0:00:10]} 1/2-1/2

[Event "DVM U10 2024"]
[Site "Duesseldorf"]
[Date "2024.12.29"]
[Round "7"]
[White "Jozsa, Lev"]
[Black "Braren, Ove Neelis"]
[Result "0-1"]
[ECO "C47"]
[WhiteElo "1617"]
[BlackElo "1634"]
[Annotator "NA"]
[PlyCount "67"]
[EventDate "2024.12.23"]
[EventType "team-tourn"]
[EventRounds "7"]
[EventCountry "GER"]
[SourceTitle "playchess.com"]
[Source "ChessBase"]
[SourceQuality "1"]
[TimeControl "3300+5"]

1. e4 {[%emt 0:00:03]} e5 {[%emt 0:00:16]} 2. Nf3 {[%emt 0:00:10]} Nc6 {[%emt 0:00:05]} 3. Nc3 {[%emt 0:00:33]} Nf6 {[%emt 0:00:25]} 4. Nxe5 {[%emt 0:00:45]} Nxe5 {[%emt 0:01:21]} 5. d4 {[%emt 0:00:16]} Ng6 {[%emt 0:04:56]} 6. e5 {[%emt 0:00:11]} Ng8 {[%emt 0:01:01]} 7. Bc4 {[%emt 0:00:17]} Bb4 {[%emt 0:05:13]} 8. Qf3 {[%emt 0:00:59]} Bxc3+ {[%emt 0:03:06]} 9. bxc3 {[%emt 0:00:12]} Qe7 {[%emt 0:03:36]} 10. O-O {[%emt 0:13:13]} Nh6 {[%emt 0:09:34]} 11. Bxh6 {[%emt 0:02:06]} gxh6 {[%emt 0:00:15]} 12. Qh5 {[%emt 0:00:22]} Qh4 {[%emt 0:01:10]} 13. Qf3 {[%emt 0:01:49]} O-O {[%emt 0:00:05]} 14. g3 {[%emt 0:00:05]} Qe7 {[%emt 0:00:05]} 15. Qh5 {[%emt 0:00:05]} Kg7 {[%emt 0:00:05]} 16. f4 {[%emt 0:09:54]} f5 {[%emt 0:10:51]} 17. exf6+ {[%emt 0:00:05]} Qxf6 {[%emt 0:00:05]} 18. f5 {[%emt 0:00:05]} Ne7 {[%emt 0:00:05]} 19. Rf4 {[%emt 0:00:05]} d5 {[%emt 0:00:05]} 20. Bd3 {[%emt 0:15:23]} Bd7 {[%emt 0:05:10]} 21. Re1 {[%emt 0:00:54]} Rae8 {[%emt 0:00:15]} 22. Ref1 {[%emt 0:01:06]} Kh8 {[%emt 0:00:25]} 23. Rh4 {[%emt 0:00:25]} Ng8 {[%emt 0:00:13]} 24. c4 {[%emt 0:01:14]} c6 {[%emt 0:00:23]} 25. cxd5 {[%emt 0:00:36]} cxd5 {[%emt 0:00:02]} 26. Qf3 {[%emt 0:00:15]} Bc6 {[%emt 0:00:31]} 27. Rf2 {[%emt 0:01:02]} b5 {[%emt 0:00:34]} 28. Re2 {[%emt 0:00:26]} Rxe2 {[%emt 0:00:10]} 29. Qxe2 {[%emt 0:00:19]} Re8 {[%emt 0:00:11]} 30. Qf1 {[%emt 0:00:15]} a6 {[%emt 0:00:08]} 31. Qa1 {[%emt 0:00:27]} Qg5 {[%emt 0:01:08]} 32. Rf4 {[%emt 0:00:54]} Nf6 {[%emt 0:00:22]} 33. Kg2 {[%emt 0:00:05]} Nh5 {[%emt 0:00:05]} 34. Rf2 {[%emt 0:00:05]} 0-1

[Event "DVM U10 2024"]
[Site "Duesseldorf"]
[Date "2024.12.29"]
[Round "7"]
[White "Dombert, Johannes"]
[Black "von Gehlen, Elian"]
[Result "1-0"]
[ECO "B15"]
[WhiteElo "1611"]
[BlackElo "1464"]
[Annotator "NA"]
[PlyCount "69"]
[EventDate "2024.12.23"]
[EventType "team-tourn"]
[EventRounds "7"]
[EventCountry "GER"]
[SourceTitle "playchess.com"]
[Source "ChessBase"]
[SourceQuality "1"]
[TimeControl "3300+5"]

1. e4 {[%emt 0:00:01]} c6 {[%emt 0:00:08]} 2. d4 {[%emt 0:00:03]} d5 {[%emt 0:00:06]} 3. Nc3 {[%emt 0:00:03]} dxe4 {[%emt 0:00:09]} 4. Nxe4 {[%emt 0:00:03]} Nf6 {[%emt 0:00:11]} 5. Nxf6+ {[%emt 0:00:04]} exf6 {[%emt 0:00:10]} 6. Nf3 {[%emt 0:00:02]} Bd6 {[%emt 0:00:12]} 7. Bd3 {[%emt 0:00:03]} O-O {[%emt 0:00:13]} 8. O-O {[%emt 0:00:04]} Bg4 {[%emt 0:00:14]} 9. h3 {[%emt 0:00:03]} Bh5 {[%emt 0:00:09]} 10. Bf5 {[%emt 0:00:04]} Nd7 {[%emt 0:02:05]} 11. Qd3 {[%emt 0:00:17]} g6 {[%emt 0:00:18]} 12. g4 {[%emt 0:00:12]} gxf5 {[%emt 0:01:46]} 13. gxh5 {[%emt 0:00:09]} f4 {[%emt 0:01:42]} 14. Nh4 {[%emt 0:00:47]} Kh8 {[%emt 0:09:05]} 15. Qf3 {[%emt 0:00:53]} f5 {[%emt 0:07:37]} 16. Bxf4 {[%emt 0:02:27]} Qxh4 {[%emt 0:01:08]} 17. Bxd6 {[%emt 0:00:10]} Rg8+ {[%emt 0:00:14]} 18. Kh2 {[%emt 0:00:58]} Qxd4 {[%emt 0:00:31]} 19. Rad1 {[%emt 0:01:38]} Qf6 {[%emt 0:02:10]} 20. Bb4 {[%emt 0:02:40]} Ne5 {[%emt 0:01:34]} 21. Qf4 {[%emt 0:01:16]} Ng4+ {[%emt 0:11:58]} 22. Kh1 {[%emt 0:00:33]} Qh4 {[%emt 0:00:41]} 23. Qf3 {[%emt 0:04:24]} Qxh5 {[%emt 0:01:24]} 24. Rd7 {[%emt 0:08:07]} Qg5 {[%emt 0:06:31]} 25. Rxf7 {[%emt 0:02:55]} Nf6 {[%emt 0:03:33]} 26. Bc3 {[%emt 0:01:05]} Rg6 {[%emt 0:00:07]} 27. Rxf6 {[%emt 0:00:47]} Rxf6 {[%emt 0:00:02]} 28. Rg1 {[%emt 0:00:12]} Qh6 {[%emt 0:00:30]} 29. Qxf5 {[%emt 0:00:47]} Raf8 {[%emt 0:00:03]} 30. Qe6 {[%emt 0:03:31]} b5 {[%emt 0:00:53]} 31. Bxf6+ {[%emt 0:00:13]} Qxf6 {[%emt 0:00:11]} 32. Rg8+ {[%emt 0:00:07]} Rxg8 {[%emt 0:00:05]} 33. Qxf6+ {[%emt 0:00:03]} Rg7 {[%emt 0:00:01]} 34. Qxc6 {[%emt 0:00:36]} Kg8 {[%emt 0:00:05]} 35. Qe8# {[%emt 0:00:06]} 1-0